bitfinex/quotes_BTCUSD_20250408
["timestamp","ask_amount","ask_price","bid_price","bid_amount"]
[1744144202774,0.34799064,76669.0,76668.0,0.00177113]
[1744144204102,0.34799064,76669.0,76668.0,0.00477113]
[1744144207728,0.013043,76669.0,76668.0,0.00477113]
[1744144207930,0.221732,76669.0,76668.0,0.00477113]
[1744144208470,0.01454085,76680.0,76672.0,0.21045213]
[1744144208674,0.01454085,76680.0,76672.0,0.00177113]
[1744144208675,0.013041,76677.0,76672.0,0.00177113]
[1744144209112,0.34,76683.0,76670.0,0.0496]
[1744144209113,0.00679221,76696.0,76684.0,0.00177113]
[1744144209319,0.00679221,76696.0,76678.0,0.0465]
[1744144209320,0.221676,76688.0,76687.0,0.00177113]
[1744144209490,0.561676,76688.0,76687.0,0.00177113]
[1744144210957,0.567676,76688.0,76687.0,0.00177113]
[1744144211403,0.006,76688.0,76687.0,0.22345113]
[1744144211757,0.013,76688.0,76687.0,0.27305113]
[1744144212434,0.013,76688.0,76687.0,0.44580977]
[1744144212833,0.005,76694.0,76687.0,0.44580977]
[1744144212834,0.005,76694.0,76693.0,0.31953213]
[1744144213036,0.005,76694.0,76693.0,0.47005342]
[1744144213206,0.013033,76724.0,76693.0,0.47005342]
[1744144213207,0.57526176,76730.0,76720.0,0.00177113]
[1744144213402,0.36049697,76740.0,76727.0,0.00177113]
[1744144213403,0.013032,76732.0,76727.0,0.00177113]
[1744144213602,0.208527,76729.0,76727.0,0.00177113]
[1744144213804,0.353033,76728.0,76727.0,0.00177113]
[1744144214051,0.34,76728.0,76727.0,0.00177113]
[1744144214450,0.34781764,76729.0,76727.0,0.00177113]
[1744144214648,0.13929064,76729.0,76727.0,0.00177113]
[1744144214888,0.013032,76731.0,76728.0,0.00177113]
[1744144214889,0.221554,76731.0,76728.0,0.00177113]
[1744144215118,0.221556,76730.0,76728.0,0.00177113]
[1744144215290,0.353032,76729.0,76728.0,0.00177113]
[1744144215698,0.34,76729.0,76728.0,0.00177113]
[1744144215897,0.357032,76729.0,76728.0,0.00177113]
[1744144216128,0.353032,76729.0,76728.0,0.00177113]
[1744144216350,0.35292684,76729.0,76728.0,0.00177113]
[1744144216550,0.013035,76714.0,76702.0,0.0961]
[1744144216765,0.208587,76707.0,76704.0,0.00177113]
[1744144217417,0.221621,76708.0,76702.0,0.255099]
[1744144217418,0.221633,76703.0,76702.0,0.00177113]
[1744144218323,0.221661,76694.0,76690.0,0.04837113]
[1744144219042,0.208625,76693.0,76690.0,0.04837113]
[1744144219531,0.221661,76694.0,76690.0,0.25700113]
[1744144219729,0.222661,76694.0,76690.0,0.26600113]
[1744144219929,0.221661,76694.0,76690.0,0.25700113]
[1744144220174,0.208626,76692.0,76690.0,0.04837113]
[1744144220382,0.221661,76694.0,76690.0,0.25700113]
[1744144220568,0.208624,76693.0,76690.0,0.26600113]
[1744144220777,0.002,76693.0,76690.0,0.26900113]
[1744144220980,0.001,76693.0,76690.0,0.26000113]
[1744144221125,0.221668,76691.0,76690.0,0.00477113]
[1744144222299,0.221668,76691.0,76690.0,0.00277113]
[1744144222464,0.221668,76691.0,76690.0,0.01077113]
[1744144222879,0.222668,76691.0,76690.0,0.00277113]
[1744144223320,0.222668,76691.0,76690.0,0.00777113]
[1744144223495,0.562668,76691.0,76690.0,0.00777113]
[1744144225293,0.561668,76691.0,76690.0,0.00177113]
[1744144225774,0.561668,76691.0,76690.0,0.00377113]
[1744144225977,0.70246749,76691.0,76690.0,0.002]
[1744144226182,0.82872294,76691.0,76690.0,0.002]
[1744144226468,0.70246749,76691.0,76690.0,0.002]
[1744144226957,0.221703,76679.0,76678.0,0.00177113]
[1744144233153,0.013041,76676.0,76675.0,0.00177113]
[1744144233382,0.013041,76676.0,76666.0,0.04837113]
[1744144233383,0.208694,76667.0,76666.0,0.04837113]
[1744144233556,0.208694,76667.0,76665.0,0.00177113]
[1744144233557,0.22174,76666.0,76665.0,0.00177113]
[1744144234385,0.208705,76663.0,76661.0,0.00177113]
[1744144234587,0.561766,76657.0,76656.0,0.01137696]
[1744144235498,0.561766,76657.0,76656.0,0.00177113]
[1744144235703,0.561766,76657.0,76656.0,0.00277113]
[1744144236737,0.561766,76657.0,76656.0,0.00377113]
[1744144237163,0.561766,76657.0,76656.0,0.00277113]
[1744144237655,0.562766,76657.0,76656.0,0.00277113]
[1744144237861,0.562766,76657.0,76656.0,0.00177113]
[1744144238210,0.563766,76657.0,76656.0,0.00177113]
[1744144240131,0.002,76657.0,76656.0,0.00177113]
[1744144240665,0.210721,76657.0,76656.0,0.00177113]
[1744144240869,0.002,76657.0,76656.0,0.22354013]
[1744144241028,0.223766,76657.0,76656.0,0.00177113]
[1744144241228,0.013045,76653.0,76652.0,0.00177113]
[1744144241489,0.221789,76649.0,76648.0,0.00177113]
[1744144241910,0.208741,76650.0,76648.0,0.00177113]
[1744144242281,0.013046,76650.0,76645.0,0.268396]
[1744144242481,0.221787,76650.0,76649.0,0.00177113]
[1744144242682,0.208741,76650.0,76649.0,0.00177113]
[1744144243320,0.208743,76649.0,76648.0,0.005]
[1744144243519,0.221789,76649.0,76648.0,0.005]
[1744144244122,0.70258849,76649.0,76648.0,0.002]
[1744144244782,0.70258849,76649.0,76639.0,0.00177113]
[1744144244783,0.208765,76641.0,76639.0,0.00177113]
[1744144244931,0.12625864,76641.0,76639.0,0.21054113]
[1744144245115,0.33502364,76641.0,76639.0,0.21054113]
[1744144245548,0.16676,76644.0,76643.0,0.013047]
[1744144245752,0.16676,76644.0,76643.0,0.21053113]
[1744144246553,0.16676,76644.0,76643.0,0.00177113]
[1744144247516,0.16676,76644.0,76643.0,0.21453113]
[1744144247890,0.16676,76644.0,76643.0,0.00577113]
[1744144248238,0.715517,76644.0,76643.0,0.00877113]
[1744144248443,0.715517,76644.0,76643.0,0.007]
[1744144248444,0.728564,76644.0,76643.0,0.007]
[1744144248651,0.728564,76644.0,76643.0,0.00877113]
[1744144249045,0.715517,76644.0,76643.0,0.00877113]
[1744144249940,0.86936349,76644.0,76643.0,0.007]
[1744144250138,0.20879,76632.0,76631.0,0.00177113]
[1744144250322,0.01305,76625.0,76621.0,0.00177113]
[1744144250528,0.208803,76627.0,76624.0,0.00177113]
[1744144250766,0.221868,76622.0,76621.0,0.00177113]
[1744144251702,0.01305,76624.0,76621.0,0.00177113]
[1744144251860,0.01454085,76630.0,76626.0,0.00177113]
[1744144252061,0.54879,76632.0,76631.0,0.00177113]
[1744144253615,0.561839,76632.0,76631.0,0.00177113]
[1744144254193,0.564839,76632.0,76631.0,0.00177113]
[1744144254404,0.006,76632.0,76631.0,0.31981213]
[1744144255482,0.1668,76637.0,76635.0,0.208779]
[1744144257408,0.1708,76637.0,76635.0,0.208779]
[1744144258057,0.1688,76637.0,76636.0,0.01481913]
[1744144258440,0.004,76637.0,76636.0,0.22359813]
[1744144258780,0.002,76637.0,76636.0,0.2600242]
[1744144258936,0.02119716,76663.0,76662.0,0.21047913]
[1744144259135,0.221749,76663.0,76662.0,0.00177113]
[1744144259590,0.561749,76663.0,76662.0,0.00177113]
[1744144259971,0.221775,76654.0,76653.0,0.00177113]
[1744144260909,0.221775,76654.0,76645.0,0.00177113]
[1744144260910,0.221797,76646.0,76645.0,0.00177113]
[1744144261065,0.221812,76641.0,76640.0,0.00177113]
[1744144261688,0.221821,76638.0,76637.0,0.05027113]
[1744144263010,0.222815,76641.0,76637.0,0.05027113]
[1744144263353,0.208771,76639.0,76637.0,0.05027113]
[1744144263561,0.221821,76638.0,76637.0,0.0485]
[1744144263867,0.208795,76630.0,76629.0,0.05037113]
[1744144264413,0.34808064,76638.0,76629.0,0.05037113]
[1744144264414,0.013046,76650.0,76641.0,0.013047]
[1744144264609,0.20876,76643.0,76641.0,0.00177113]
[1744144264841,0.221807,76643.0,76641.0,0.00177113]
[1744144265110,0.548762,76642.0,76641.0,0.00177113]
[1744144265313,0.561809,76642.0,76641.0,0.00177113]
[1744144265754,0.548761,76643.0,76642.0,0.00177113]
[1744144265928,0.34,76643.0,76642.0,0.00177113]
[1744144266356,0.54876,76643.0,76642.0,0.00177113]
[1744144266511,0.561807,76643.0,76642.0,0.00177113]
[1744144267326,0.34,76643.0,76642.0,0.00177113]
[1744144267528,0.5068,76646.0,76645.0,0.21052513]
[1744144267803,0.1668,76646.0,76645.0,0.26907213]
[1744144268004,0.1668,76646.0,76645.0,0.09587113]
[1744144268202,0.388597,76646.0,76645.0,0.00177113]
[1744144269036,0.221801,76645.0,76644.0,0.00177113]
[1744144269449,0.34805964,76645.0,76644.0,0.00177113]
[1744144270663,0.34805964,76645.0,76644.0,0.00277113]
[1744144271893,0.12625864,76645.0,76644.0,0.00277113]
[1744144272102,0.221789,76649.0,76647.0,0.00177113]
[1744144272304,0.375546,76648.0,76647.0,0.00177113]
[1744144273716,0.1668,76648.0,76647.0,0.00277113]
[1744144273915,0.1668,76648.0,76647.0,0.21152013]
[1744144274116,0.1668,76648.0,76647.0,0.22456613]
[1744144274327,0.1668,76648.0,76647.0,0.27446613]
[1744144274866,0.208715,76660.0,76647.0,0.27446613]
[1744144274867,1.03404,76662.0,76660.0,0.00177113]
[1744144275030,0.67496964,76661.0,76660.0,0.00177113]
[1744144275800,0.68801364,76661.0,76660.0,0.00177113]
[1744144276206,0.013045,76656.0,76655.0,0.00177113]
[1744144276408,0.208734,76653.0,76652.0,0.00177113]
[1744144276807,0.20873,76654.0,76652.0,0.00177113]
[1744144277011,0.20873,76654.0,76653.0,0.00177113]
[1744144277416,0.208735,76652.0,76651.0,0.00177113]
[1744144277635,0.221775,76654.0,76653.0,0.00177113]
[1744144278278,0.548751,76646.0,76645.0,0.00177113]
[1744144278477,0.548751,76646.0,76644.0,0.00177113]
[1744144278478,0.561801,76645.0,76644.0,0.00177113]
[1744144278680,0.68805964,76645.0,76644.0,0.00177113]
[1744144279621,0.16656,76646.0,76645.0,0.22357213]
[1744144279796,0.50656,76646.0,76645.0,0.22357213]
[1744144279989,0.16656,76646.0,76645.0,0.22357213]
[1744144280377,0.16656,76646.0,76645.0,0.22457213]
[1744144281001,0.375311,76646.0,76645.0,0.00277113]
[1744144281181,0.16656,76646.0,76645.0,0.00277113]
[1744144281376,0.388357,76646.0,76645.0,0.00277113]
[1744144283225,0.353046,76651.0,76649.0,0.00177113]
[1744144283429,0.46625864,76650.0,76649.0,0.00177113]
[1744144283581,0.67499964,76650.0,76649.0,0.00177113]
[1744144283781,0.68804564,76650.0,76649.0,0.00177113]
[1744144284525,0.221787,76650.0,76649.0,0.00177113]
[1744144285588,0.16656,76659.0,76649.0,0.00177113]
[1744144285589,0.16656,76659.0,76658.0,0.00177113]
[1744144285761,0.16656,76659.0,76658.0,0.22353413]
[1744144286196,1.03404,76662.0,76658.0,0.22353413]
[1744144286197,0.013041,76677.0,76672.0,0.013042]
[1744144286336,0.208683,76671.0,76670.0,0.00177113]
[1744144286545,0.2288656,76671.0,76670.0,0.00177113]
[1744144287194,0.2419076,76671.0,76670.0,0.00177113]
[1744144287369,0.5819076,76671.0,76670.0,0.00177113]
[1744144287685,0.5849076,76671.0,76670.0,0.00177113]
[1744144287892,0.5849076,76671.0,76670.0,0.00144113]
[1744144288725,0.5879076,76671.0,76670.0,0.00144113]
[1744144289514,0.561728,76670.0,76669.0,0.00144113]
[1744144290845,0.22174,76666.0,76665.0,0.00144113]
[1744144292036,0.22274,76666.0,76665.0,0.00144113]
[1744144292412,0.22374,76666.0,76665.0,0.00144113]
[1744144294303,0.22374,76666.0,76665.0,0.22318413]
[1744144294304,0.002,76666.0,76665.0,0.22318413]
[1744144294521,0.002,76666.0,76665.0,0.26818413]
[1744144295361,0.002,76666.0,76665.0,0.44004277]
[1744144296649,0.002,76666.0,76665.0,0.45214013]
[1744144296996,0.002,76666.0,76665.0,0.4763335]
[1744144297204,0.001,76666.0,76665.0,0.4763335]
[1744144297586,0.002,76666.0,76665.0,0.4763335]
[1744144297792,0.02,76683.0,76682.0,0.31373413]
[1744144298072,0.02,76683.0,76682.0,0.43999277]
[1744144300465,1.20036,76709.0,76708.0,0.22306013]
[1744144300812,1.54036,76709.0,76708.0,0.22306013]
[1744144301019,1.20036,76709.0,76708.0,0.22306013]
[1744144301370,0.179514,76722.0,76716.0,0.00144113]
[1744144301570,0.208557,76718.0,76716.0,0.00144113]
[1744144301771,0.013034,76717.0,76716.0,0.00144113]
[1744144301980,0.353034,76717.0,76716.0,0.00144113]
[1744144302128,0.013034,76717.0,76716.0,0.00144113]
[1744144302484,0.34,76717.0,76716.0,0.00144113]
[1744144303170,0.01994401,76717.0,76716.0,0.01447613]
[1744144303372,1.0336,76734.0,76729.0,0.00144113]
[1744144303576,0.208523,76730.0,76729.0,0.00144113]
[1744144303773,0.548523,76730.0,76729.0,0.00144113]
[1744144303975,0.561555,76730.0,76729.0,0.00144113]
[1744144304342,0.208523,76730.0,76729.0,0.00144113]
[1744144304881,0.221555,76730.0,76729.0,0.00144113]
[1744144305064,0.24162734,76730.0,76729.0,0.00144113]
[1744144305262,0.25062734,76730.0,76729.0,0.00144113]
[1744144306452,0.25962734,76730.0,76729.0,0.00144113]
[1744144312128,0.03807234,76730.0,76729.0,0.00144113]
[1744144312709,0.03807234,76730.0,76729.0,0.20996713]
[1744144312891,0.03807234,76730.0,76729.0,0.00144113]
[1744144312892,0.02007234,76730.0,76729.0,0.00144113]
[1744144313092,0.208523,76730.0,76729.0,0.00144113]
[1744144313459,0.226523,76730.0,76729.0,0.00144113]
[1744144313813,0.217523,76730.0,76729.0,0.00144113]
[1744144313999,0.566523,76730.0,76729.0,0.00144113]
[1744144314199,0.579555,76730.0,76729.0,0.00144113]
[1744144314644,0.358,76730.0,76729.0,0.00144113]
[1744144315332,0.018,76730.0,76729.0,0.20996713]
[1744144315552,0.027,76730.0,76729.0,0.31810552]
[1744144315779,0.027,76730.0,76729.0,0.31549913]
[1744144316209,0.018,76730.0,76729.0,0.10378864]
[1744144316405,0.239555,76730.0,76729.0,0.00144113]
[1744144316629,0.229555,76730.0,76729.0,0.00144113]
[1744144316966,0.236555,76730.0,76729.0,0.00144113]
[1744144317199,0.228555,76730.0,76729.0,0.00144113]
[1744144318327,0.232555,76730.0,76729.0,0.00144113]
[1744144318564,0.236555,76730.0,76729.0,0.00144113]
[1744144319223,0.221569,76725.0,76724.0,0.00144113]
[1744144321625,0.223569,76725.0,76724.0,0.00144113]
[1744144321828,0.224569,76725.0,76724.0,0.00144113]
[1744144322931,0.224569,76725.0,76724.0,0.00079613]
[1744144325519,0.208596,76703.0,76697.0,0.0952]
[1744144325768,0.37478,76709.0,76705.0,0.208591]
[1744144326054,0.208584,76708.0,76704.0,0.208593]
[1744144326277,0.1662,76709.0,76708.0,0.00079613]
[1744144326528,0.013035,76714.0,76712.0,0.208571]
[1744144326529,0.34,76714.0,76712.0,0.208571]
[1744144326992,0.208569,76714.0,76710.0,0.221611]
[1744144327236,0.208573,76712.0,76709.0,0.20858]
[1744144327487,0.20857,76713.0,76710.0,0.208577]
[1744144328723,0.20957,76713.0,76710.0,0.208577]
[1744144329070,0.221608,76712.0,76711.0,0.00079613]
[1744144330877,0.222608,76712.0,76711.0,0.00079613]
[1744144331075,0.001,76712.0,76711.0,0.00079613]
[1744144331276,0.209572,76712.0,76711.0,0.00079613]
[1744144331497,0.002,76712.0,76711.0,0.01383113]
[1744144331726,0.002,76712.0,76711.0,0.26750613]
[1744144331929,0.002,76712.0,76711.0,0.31730613]
[1744144332302,0.002,76712.0,76711.0,0.3415447]
[1744144332512,0.002,76712.0,76711.0,0.3536654]
[1744144332678,0.001,76712.0,76711.0,0.3486654]
[1744144333102,0.001,76712.0,76711.0,0.3496654]
[1744144333297,0.001,76712.0,76711.0,0.47592404]
[1744144333955,0.208539,76725.0,76722.0,0.208543]
[1744144334898,0.208538,76725.0,76722.0,0.208543]
[1744144335195,0.211538,76725.0,76722.0,0.208143]
[1744144335722,0.214538,76725.0,76722.0,0.208143]
[1744144336050,0.006,76725.0,76724.0,0.208539]
[1744144336252,0.006,76725.0,76723.0,0.208542]
[1744144336477,0.006,76725.0,76724.0,0.221572]
[1744144337160,0.003,76725.0,76724.0,0.4485372]
[1744144337419,1.212067,76760.0,76748.0,0.013029]
[1744144337636,1.212067,76760.0,76724.0,0.13835311]
[1744144337637,0.0406377,76759.0,76757.0,0.013028]
[1744144337869,0.01993885,76759.0,76758.0,0.208447]
[1744144338098,0.16604,76760.0,76759.0,0.208444]
[1744144338323,0.16604,76760.0,76758.0,0.208447]
[1744144338579,0.21522484,76766.0,76761.0,0.208439]
[1744144338580,0.00679884,76766.0,76761.0,0.208439]
[1744144338780,0.00679884,76766.0,76758.0,0.04899448]
[1744144338781,0.013024,76780.0,76773.0,0.208404]
[1744144338994,0.208406,76773.0,76769.0,0.257517]
[1744144339238,0.208406,76773.0,76770.0,0.208414]
[1744144339446,0.208407,76773.0,76769.0,0.221443]
[1744144339653,0.208407,76773.0,76770.0,0.208414]
[1744144340222,0.208409,76772.0,76767.0,0.208422]
[1744144340421,0.208411,76772.0,76768.0,0.208419]
[1744144340618,0.208411,76772.0,76769.0,0.208416]
[1744144340820,0.208411,76772.0,76765.0,0.221453]
[1744144340821,0.221434,76772.0,76765.0,0.221453]
[1744144341024,0.208416,76770.0,76767.0,0.208422]
[1744144341293,0.24127295,76772.0,76768.0,0.208419]
[1744144341635,0.24627295,76772.0,76768.0,0.208419]
[1744144342175,0.208412,76771.0,76768.0,0.208419]
[1744144342489,0.002,76770.0,76768.0,0.208419]
[1744144342675,0.002,76770.0,76767.0,0.208422]
[1744144342875,0.002,76770.0,76768.0,0.208419]
[1744144343078,0.002,76770.0,76768.0,0.208418]
[1744144343284,0.210416,76770.0,76764.0,0.013026]
[1744144343486,0.210416,76770.0,76765.0,0.013026]
[1744144343487,0.208416,76770.0,76765.0,0.013026]
[1744144343686,0.224439,76771.0,76766.0,0.013026]
[1744144343904,0.20842,76768.0,76762.0,0.013027]
[1744144344051,0.20842,76768.0,76764.0,0.208429]
[1744144344256,0.224441,76770.0,76767.0,0.208422]
[1744144344452,0.224441,76770.0,76761.0,0.0491]
[1744144344453,0.013027,76762.0,76755.0,0.208452]
[1744144344731,0.221474,76758.0,76754.0,0.0981]
[1744144344945,0.013028,76755.0,76754.0,0.05902036]
[1744144345137,0.013028,76755.0,76745.0,0.0491]
[1744144345138,0.208474,76748.0,76745.0,0.0491]
[1744144345420,0.013029,76749.0,76745.0,0.0491]
[1744144345555,0.208466,76751.0,76746.0,0.221508]
[1744144345760,0.208469,76750.0,76747.0,0.208476]
[1744144345964,0.208456,76755.0,76751.0,0.208464]
[1744144346166,0.208458,76754.0,76750.0,0.208469]
[1744144346366,0.221486,76754.0,76749.0,0.221499]
[1744144346568,0.221486,76754.0,76749.0,0.219899]
[1744144346970,0.208461,76753.0,76749.0,0.219899]
[1744144347244,0.208464,76752.0,76751.0,0.005]
[1744144347602,0.208464,76752.0,76750.0,0.002]
[1744144348005,0.208464,76752.0,76749.0,0.006]
[1744144348006,0.208469,76750.0,76749.0,0.006]
[1744144348324,0.013028,76752.0,76749.0,0.208471]
[1744144348532,0.014028,76752.0,76751.0,0.005]
[1744144348777,0.222493,76752.0,76751.0,0.005]
[1744144349335,0.223493,76752.0,76751.0,0.007]
[1744144349863,0.001,76752.0,76751.0,0.226495]
[1744144350075,0.001,76752.0,76751.0,0.22910045]
[1744144350268,0.013026,76767.0,76761.0,0.221465]
[1744144350269,0.221451,76766.0,76761.0,0.221465]
[1744144350504,0.34,76764.0,76762.0,0.208436]
[1744144350717,0.013026,76768.0,76760.0,0.013027]
[1744144350718,0.16596,76783.0,76771.0,0.208412]
[1744144350916,0.16596,76783.0,76774.0,0.221428]
[1744144351068,0.208379,76783.0,76774.0,0.221428]
[1744144351268,0.013021,76798.0,76774.0,0.35029149]
[1744144351473,0.208349,76794.0,76774.0,0.34768664]
[1744144351677,0.34,76790.0,76774.0,0.34768664]
[1744144352011,0.013021,76796.0,76774.0,0.40273096]
[1744144352012,0.208347,76795.0,76774.0,0.40273096]
[1744144352154,0.013022,76793.0,76774.0,0.40273096]
[1744144352354,0.20836,76791.0,76774.0,0.40273096]
[1744144352559,0.013023,76786.0,76774.0,0.40273096]
[1744144352782,0.208375,76785.0,76774.0,0.40273096]
[1744144352964,0.013023,76782.0,76774.0,0.27647232]
[1744144353160,0.208385,76781.0,76774.0,0.27647232]
[1744144353365,0.007,76775.0,76774.0,0.27747232]
[1744144353624,0.007,76775.0,76774.0,0.05604432]
[1744144353835,0.013027,76761.0,76751.0,0.02599439]
[1744144354043,0.221474,76758.0,76757.0,0.0458]
[1744144355004,0.208459,76754.0,76750.0,0.208468]
[1744144355173,0.208462,76753.0,76750.0,0.33472664]
[1744144355421,0.221492,76752.0,76749.0,0.00964134]
[1744144355603,0.03147376,76758.0,76733.0,0.0458]
[1744144355604,0.221532,76738.0,76733.0,0.0458]
[1744144355797,0.208498,76740.0,76736.0,0.208506]
[1744144356000,0.013031,76740.0,76733.0,0.05561539]
[1744144356166,0.208498,76739.0,76735.0,0.208509]
[1744144357154,0.208502,76738.0,76733.0,0.05561539]
[1744144357344,0.013032,76734.0,76733.0,0.05561539]
[1744144357750,0.208503,76738.0,76733.0,0.05561539]
[1744144357959,0.208503,76738.0,76735.0,0.006]
[1744144358091,0.208505,76737.0,76733.0,0.27716139]
[1744144358287,0.208509,76736.0,76733.0,0.05561539]
[1744144358502,0.208509,76736.0,76735.0,0.003]
[1744144358800,0.014031,76738.0,76735.0,0.003]
[1744144358801,0.001,76738.0,76737.0,0.221535]
[1744144359027,0.001,76738.0,76737.0,0.3503994]
[1744144359238,0.001,76738.0,76737.0,0.34779364]
[1744144360088,0.001,76738.0,76737.0,0.35079364]
[1744144360664,0.208423,76767.0,76761.0,0.221466]
[1744144361006,0.208409,76773.0,76766.0,0.013026]
[1744144361130,0.013026,76764.0,76759.0,0.0458]
[1744144361333,0.013026,76766.0,76759.0,0.254242]
[1744144361531,0.013026,76766.0,76760.0,0.013027]
[1744144361784,0.208425,76767.0,76763.0,0.208433]
[1744144362002,0.216425,76767.0,76763.0,0.208433]
[1744144362218,0.021026,76767.0,76761.0,0.001]
[1744144362431,0.021026,76767.0,76759.0,0.0468]
[1744144362432,0.221465,76762.0,76759.0,0.0468]
[1744144362652,0.208434,76763.0,76760.0,0.001]
[1744144363060,0.214431,76764.0,76760.0,0.209441]
[1744144363263,0.214431,76764.0,76760.0,0.208441]
[1744144363499,0.208436,76762.0,76761.0,0.001]
[1744144363698,0.221463,76762.0,76761.0,0.001]
[1744144364112,0.561463,76762.0,76761.0,0.001]
[1744144364315,0.70226249,76762.0,76761.0,0.001]
[1744144364487,0.013031,76738.0,76730.0,0.0458]
[1744144364693,0.221533,76738.0,76732.0,0.208516]
[1744144364869,0.20851,76735.0,76732.0,0.208516]
[1744144365085,0.221535,76737.0,76733.0,0.208514]
[1744144365465,0.208504,76737.0,76734.0,0.208511]
[1744144365668,0.208497,76740.0,76736.0,0.013031]
[1744144365966,0.001,76738.0,76736.0,0.208506]
[1744144366205,0.001,76738.0,76735.0,0.013031]
[1744144366419,0.208501,76738.0,76734.0,0.20851]
[1744144366621,0.208501,76738.0,76734.0,0.213511]
[1744144367180,0.221538,76736.0,76734.0,0.005]
[1744144367386,0.208507,76736.0,76734.0,0.005]
[1744144367898,0.221532,76738.0,76733.0,0.214513]
[1744144368098,0.208504,76737.0,76735.0,0.005]
[1744144368299,0.221532,76738.0,76735.0,0.005]
[1744144368499,0.208506,76737.0,76734.0,0.005]
[1744144368690,0.208506,76737.0,76733.0,0.208514]
[1744144368893,0.03202682,76739.0,76734.0,0.218511]
[1744144369120,0.208504,76737.0,76734.0,0.01]
[1744144369317,0.208507,76736.0,76734.0,0.01]
[1744144369516,0.208507,76736.0,76734.0,0.005]
[1744144369720,0.208507,76736.0,76734.0,0.01]
[1744144370751,0.221532,76738.0,76734.0,0.213509]
[1744144370953,0.208505,76737.0,76734.0,0.208512]
[1744144371151,0.208505,76737.0,76734.0,0.213512]
[1744144371417,0.34,76745.0,76743.0,0.01303]
[1744144371591,0.34,76745.0,76742.0,0.20849]
[1744144371834,0.548482,76745.0,76741.0,0.208493]
[1744144372185,0.208485,76744.0,76741.0,0.208492]
[1744144372561,0.208485,76744.0,76740.0,0.208495]
[1744144372770,0.208504,76737.0,76733.0,0.208514]
[1744144373027,0.2085,76739.0,76735.0,0.208509]
[1744144373224,0.2085,76739.0,76736.0,0.208506]
[1744144373417,0.2085,76739.0,76731.0,0.013032]
[1744144373418,0.208515,76733.0,76730.0,0.00975379]
[1744144373590,0.208515,76733.0,76721.0,0.013034]
[1744144373591,0.221555,76730.0,76724.0,0.208537]
[1744144373787,0.221555,76730.0,76726.0,0.208533]
[1744144374008,0.221555,76730.0,76725.0,0.221567]
[1744144374171,0.221555,76730.0,76725.0,0.208535]
[1744144374373,0.208529,76728.0,76725.0,0.208535]
[1744144374571,0.013033,76727.0,76719.0,0.02599439]
[1744144374773,0.208544,76723.0,76720.0,0.20855]
[1744144375014,0.208539,76724.0,76722.0,0.208545]
[1744144375229,0.013033,76725.0,76720.0,0.013034]
[1744144375425,0.013033,76725.0,76721.0,0.208546]
[1744144375605,0.208528,76729.0,76725.0,0.208536]
[1744144375802,0.001,76727.0,76725.0,0.208536]
[1744144376383,0.001,76727.0,76726.0,0.221567]
[1744144377001,0.208515,76733.0,76730.0,0.208522]
[1744144377339,0.221542,76735.0,76732.0,0.208517]
[1744144377495,0.221538,76736.0,76732.0,0.208517]
[1744144377679,0.221542,76735.0,76730.0,0.013032]
[1744144377885,0.013032,76734.0,76730.0,0.208523]
[1744144378213,0.208516,76733.0,76730.0,0.004]
[1744144378615,0.208512,76735.0,76733.0,0.208515]
[1744144378816,0.208512,76735.0,76732.0,0.003]
[1744144379018,0.208513,76734.0,76730.0,0.017032]
[1744144379225,0.208512,76734.0,76730.0,0.212523]
[1744144379430,0.208512,76734.0,76730.0,0.004]
[1744144379431,0.013032,76734.0,76730.0,0.004]
[1744144379628,0.208518,76732.0,76730.0,0.004]
[1744144380383,0.20852,76731.0,76730.0,0.008]
[1744144380719,0.20852,76731.0,76730.0,0.004]
[1744144380915,0.221548,76733.0,76729.0,0.208525]
[1744144381116,0.208512,76734.0,76731.0,0.20852]
[1744144381320,0.312715,76747.0,76742.0,0.208489]
[1744144381321,0.22712016,76744.0,76742.0,0.208489]
[1744144381521,0.0304,76770.0,76744.0,0.01303]
[1744144381522,0.013029,76750.0,76744.0,0.01303]
[1744144381711,0.013029,76750.0,76744.0,0.208484]
[1744144381712,0.20848,76746.0,76744.0,0.208484]
[1744144381910,0.20848,76746.0,76742.0,0.221518]
[1744144381911,0.208483,76745.0,76742.0,0.208488]
[1744144382156,0.208483,76745.0,76741.0,0.221522]
[1744144382356,0.2215,76751.0,76743.0,0.01303]
[1744144382527,0.03166212,76749.0,76743.0,0.221517]
[1744144382730,0.208483,76745.0,76741.0,0.221522]
[1744144383095,0.34,76748.0,76742.0,0.01303]
[1744144383294,0.548474,76748.0,76743.0,0.01303]
[1744144383449,0.003,76750.0,76749.0,0.2215]
[1744144384058,0.01857438,76753.0,76752.0,0.208463]
[1744144384370,0.1658,76758.0,76757.0,0.221478]
[1744144384528,0.1658,76758.0,76757.0,0.20845]
[1744144384906,0.1658,76780.0,76772.0,0.221434]
[1744144385108,0.1658,76780.0,76774.0,0.013025]
[1744144385356,0.1658,76780.0,76774.0,0.221428]
[1744144385484,0.34,76778.0,76774.0,0.221428]
[1744144385675,0.1658,76780.0,76774.0,0.221428]
[1744144386268,0.11661857,76790.0,76774.0,0.221428]
[1744144386494,1e-06,76775.0,76774.0,0.4297985]
[1744144387139,1e-06,76775.0,76774.0,0.4539731]
[1744144387341,1e-06,76775.0,76774.0,0.5007731]
[1744144387567,1e-06,76775.0,76774.0,0.5027731]
[1744144387787,1e-06,76775.0,76774.0,0.51484602]
[1744144387990,1e-06,76775.0,76774.0,0.51384602]
[1744144388196,0.01899454,76802.0,76798.0,0.221359]
[1744144388434,0.16568,76809.0,76798.0,0.221359]
[1744144388958,0.34,76808.0,76798.0,0.221359]
[1744144389404,0.16568,76809.0,76798.0,0.221359]
[1744144389405,0.0084,76799.0,76798.0,0.224963]
[1744144389577,0.0084,76799.0,76798.0,0.29775739]